Cogmind - Beta 13 @@@ ROGUE MODE // 2024.04.27 @ 12:18:25 Player: Gabe+Kate4EVR Result: Destroyed by G-67 Veteran with Plasma Rifle Performance ------------- Evolutions (4) 2000 Regions Visited (6) 1200 Robots Destroyed (111) 555 Value Destroyed (3284) 3284 Prototype IDs (8) 160 Alien Tech Used (0) 0 Bonus (626) 626 TOTAL SCORE: 7825 Bonus ------- High Alert Combat Kills 126 Entered DSFs 500 Cogmind --------- Core Integrity 0/850 Matter 13/300 Energy 43/100 System Corruption 0% Temperature Cool (0) Movement Core (50) Location -6/DSF Parts ------- > --- POWER (1) -------- (None) > --- PROPULSION (4) --- Xenon Bombardment Thruster > --- UTILITY (8) ------ Advanced Weight Redist. System Advanced Visual Processing Unit Advanced Targeting Computer Core Analyzer Graphene Brace Authchip [Power] > --- WEAPON (2) ------- (None) > --- INVENTORY (5) ---- Hardened Heavy Armor Plating Medium Reactive Plating Grenade Launcher Peak State ------------ > --- POWER ------------ Light Angular Momentum Engine > --- PROPULSION ------- Aluminum Leg Aluminum Leg > --- UTILITY ---------- Advanced Heat Sink Advanced Heat Sink High-capacity Storage Unit Advanced Visual Processing Unit Advanced Targeting Computer Core Analyzer Graphene Brace > --- WEAPON ----------- Enhanced Gauss Cannon Enhanced Gauss Cannon > --- INVENTORY -------- Light Deuterium Engine Light Deuterium Engine Light Nuclear Core Light Angular Momentum Engine Large Storage Unit Advanced Weight Redist. System Hardened Heavy Armor Plating Improved Light Armor Plating Medium Reactive Plating Improved Recalibrator Particle Gun Improved Medium Laser Advanced Beam Rifle Advanced Beam Cannon Improved Assault Rifle Improved Assault Rifle Enhanced Gauss Cannon Enhanced Gauss Cannon Plasma Cutter [Rating: 54] Favorites ----------- Power Light Nuclear Core Engine Light Deuterium Engine Power Core Light Nuclear Core Propulsion Titanium Leg Leg Titanium Leg Hover Unit Hover Unit Flight Unit Xenon Bombardment Thruster Utility Advanced Targeting Computer Device Improved Heat Sink Storage Medium Storage Unit Processor Advanced Targeting Computer Hackware Authchip [Power] Protection Hardened Medium Armor Plating Weapon Heavy EM Pulse Gun Energy Gun Heavy EM Pulse Gun Energy Cannon EM Pulse Cannon Ballistic Gun Improved Assault Rifle Ballistic Cannon Flak Cannon Launcher Grenade Launcher Build | -11 -10 -9 -8 -7 -6 -6 ------- Run | Yrd Mat Mat Mat Fac Fac DSF Slots Evolved 8 | . . 2 2 2 2 . Power . | . . . . . . . Propulsion 2 | . . 1 . 1 . . Utility 6 | . . 1 2 1 2 . Weapon . | . . . . . . . Parts Attached 143 | 4 11 23 49 31 2 23 Power 16 | . 1 3 6 4 . 2 Engine 10 | . 1 1 4 3 . 1 Core 6 | . . 2 2 1 . 1 Reactor . | . . . . . . . Propulsion 39 | 2 4 8 14 10 . 1 Treads . | . . . . . . . Leg 31 | 2 1 4 14 10 . . Wheel . | . . . . . . . Hover 7 | . 3 4 . . . . Flight 1 | . . . . . . 1 Utility 41 | . 3 4 16 9 2 7 Device 22 | . 2 3 9 4 2 2 Storage 3 | . 1 . 2 . . . Processor 5 | . . 1 2 2 . . Hackware 1 | . . . . . . 1 Protection 10 | . . . 3 3 . 4 Artifact . | . . . . . . . Weapon 47 | 2 3 8 13 8 . 13 Energy Gun 20 | 1 3 3 7 3 . 3 Energy Cannon 8 | . . 2 3 2 . 1 Ballistic Gun 5 | 1 . . 1 2 . 1 Ballistic Cannon 8 | . . 3 . . . 5 Launcher 6 | . . . 2 1 . 3 Special Weapon . | . . . . . . . Impact Weapon . | . . . . . . . Slashing Weapon . | . . . . . . . Piercing Weapon . | . . . . . . . Special Melee Weapon . | . . . . . . . Unidentified Prototypes 6 | . . 1 5 . . . Corrupted Parts 3 | . . . 3 . . . System Corruption 8 | . . . 8 . . . Parts Lost 34 | . . . 10 10 . 14 Power 5 | . . . 2 2 . 1 Propulsion 11 | . . . 2 5 . 4 Utility 9 | . . . 4 2 . 3 Weapon 9 | . . . 2 1 . 6 Highest Loss Streak 7 | . . . 5 5 . 7 To Critical Strikes . | . . . . . . . Average Slot Usage (%) 94 | . 92 99 96 97 93 67 Engine 5 | . 11 5 4 2 6 3 Core 3 | . . 5 3 4 . 1 Leg 24 | . 7 28 26 28 26 9 Hover 3 | . 20 4 . . . . Device 12 | . 16 10 13 11 13 13 Storage 8 | . 7 11 9 7 6 3 Processor 14 | . . 11 18 16 20 20 Protection 2 | . . . 2 8 6 1 Energy Gun 12 | . 24 15 12 6 6 1 Energy Cannon 2 | . . . 4 4 . . Ballistic Gun 1 | . 2 . . 2 6 3 Ballistic Cannon 2 | . . 5 . . . 5 Naked Turns . | . . . . . . . Heaviest Build 76 | 3 24 30 61 70 72 76 Greatest Support 68 | 20 20 51 51 68 51 51 Greatest Overweight (x) 21 | . 2 1 1 3 1 21 Average Overweight (x) . | . . . . . 1 1 Largest Inventory Capacity 20 | 5 10 10 20 20 20 20 Average Capacity 13 | 5 7 10 14 20 20 14 Most Carried 20 | . 10 10 20 20 17 20 Average Carried 12 | . 6 9 13 18 16 12 Final Capacity 20 | 5 10 10 20 20 20 5 Final Carried 20 | . 10 10 20 18 16 4 Class Distribution -------------------- 87% | Mutant 12% | Scavenger-Mutant Dominant Class ---------------- Mutant | -10/Materials Mutant | -9/Materials Mutant | -8/Materials Mutant | -7/Factory Scavenger-Mutant | -6/Factory Scavenger-Mutant | -6/DSF Resources | -11 -10 -9 -8 -7 -6 -6 ----------- Run | Yrd Mat Mat Mat Fac Fac DSF Matter Collected 1970 | 209 156 500 486 303 . 316 Remotely . | . . . . . . . Salvage Created 4709 | . 217 1620 1399 1220 . 253 Parts 249 | . 14 100 72 51 . 12 Haulers Intercepted 9 | . 1 4 4 . . . Recyclers Shooed 4 | . . 1 1 2 . . Parts Field Recycled . | . . . . . . . Retrieved Matter . | . . . . . . . Parts Self-Destructed . | . . . . . . . Prevented . | . . . . . . . Kills | -11 -10 -9 -8 -7 -6 -6 ------- Run | Yrd Mat Mat Mat Fac Fac DSF Combat Hostiles Destroyed 69 | . 1 25 21 13 . 9 Guns 40 | . 1 15 13 8 . 3 Cannons 19 | . . 8 5 4 . 2 AOE 7 | . . 1 2 . . 4 Classes Destroyed 14 | . 4 6 . 4 . . Worker 4 | . . 3 . 1 . . Builder 5 | . . 2 2 1 . . Hauler 9 | . 1 4 4 . . . Recycler 10 | . 1 3 2 4 . . Mechanic 3 | . . 1 . 2 . . Operator 2 | . . 2 . . . . Watcher 9 | . 2 1 5 1 . . Swarmer 12 | . . 3 6 . . 3 Grunt 32 | . 1 16 8 4 . 3 Duelist 1 | . . . . 1 . . Sentry 15 | . . 6 7 2 . . Specialist 4 | . . . . 4 . . Hunter 3 | . . . . 1 . 2 Heavy 2 | . . . . 1 . 1 Best Kill Streak 8 | . 3 5 8 7 . 3 Combat Bots Only 7 | . 1 5 7 3 . 3 Max Kills in Single Turn 3 | . 1 2 3 2 . 2 Gunslinging 1 | . . . 1 . . . Exploded 1 | . . 1 1 . . 1 Melee . | . . . . . . . Uniques/NPCs Destroyed . | . . . . . . . Combat | -11 -10 -9 -8 -7 -6 -6 -------- Run | Yrd Mat Mat Mat Fac Fac DSF Hostile Shots Fired 695 | . 6 96 123 263 . 207 Missed 209 | . 2 25 30 102 . 50 Damage Taken 7482 | . 63 838 1396 2081 . 3104 Core 1553 | . 32 93 219 356 . 853 Absorbed by Shields . | . . . . . . . Ignored by Resistances 30 | . . . . . . 30 Regen/Repaired (Parts) 504 | . . 34 359 111 . . Core Remaining (%) 74 | 100 87 76 60 49 . . Volleys Fired 294 | . 15 92 70 75 . 42 Largest 2 | . 2 2 2 2 . 2 Hottest 129 | . 90 126 126 129 . 122 Shots Fired 566 | . 29 183 132 149 . 73 Gun 387 | . 29 132 95 90 . 41 Cannon 165 | . . 51 36 54 . 24 Launcher 14 | . . . 1 5 . 8 Special . | . . . . . . . Kinetic 136 | . 5 45 7 32 . 47 Thermal 241 | . 4 43 77 99 . 18 Explosive 5 | . . . 1 . . 4 Electromagnetic 184 | . 20 95 47 18 . 4 Robot Hit Streak 25 | . 8 13 15 25 . 7 Robot Miss Streak 9 | . 2 9 3 4 . 2 Penetration Max . | . . . . . . . Secondary Targets 3 | . . . 2 . . 1 Max Gunslinging Chain 1 | . . . 1 . . 1 Shots Hit Robots 394 | . 17 117 99 111 . 50 Core Hits 216 | . 7 84 54 50 . 21 Critical Kills 2 | . . . 1 1 . . Critical Parts Destroyed . | . . . . . . . Critical Strikes 14 | . . 3 4 6 . 1 Burn 8 | . . 1 2 5 . . Meltdown 2 | . . . 1 1 . . Blast 1 | . . . . . . 1 Corrupt 3 | . . 2 1 . . . Melee Attacks . | . . . . . . . Impact . | . . . . . . . Slashing . | . . . . . . . Piercing . | . . . . . . . Sneak Attacks . | . . . . . . . Combat Hostiles . | . . . . . . . Follow-up Attacks . | . . . . . . . Damage Inflicted 8550 | . 248 2237 2278 2383 . 1404 Guns 4516 | . 248 1244 1251 1306 . 467 Cannons 2918 | . . 904 725 842 . 447 Explosions 1094 | . . 85 284 235 . 490 Melee . | . . . . . . . Ramming 22 | . . 4 18 . . . Kinetic 1925 | . 46 775 88 375 . 641 Thermal 3731 | . 44 647 1094 1673 . 273 Explosive 546 | . . . 142 . . 404 Electromagnetic 2326 | . 158 811 936 335 . 86 Impact . | . . . . . . . Slashing . | . . . . . . . Piercing . | . . . . . . . Highest Corruption 8 | . . . 8 . . . Average Corruption 5 | . . . 5 . . . Corruption Purged . | . . . . . . . Corruption Blocked . | . . . . . . . Effects 3 | . . . 3 . . . Matter Fused 2 | . . . 2 . . . Heat Flow Errors 1 | . . . 1 . . . Overload Shots . | . . . . . . . Overflow Damage 145 | . . 1 11 82 . 51 Projectiles 59 | . . 1 9 13 . 36 Explosions 86 | . . . 2 69 . 15 Melee . | . . . . . . . Knockbacks 18 | . . 11 . . . 7 Impact . | . . . . . . . Kinetic 18 | . . 11 . . . 7 Secondary . | . . . . . . . Self-Inflicted Damage 240 | . . 43 66 131 . . Shots 5 | . . 1 2 2 . . Rammed . | . . . . . . . Targets Rammed 8 | . . 2 6 . . . Kicked 8 | . . 2 6 . . . Crushed . | . . . . . . . Highest Temperature 186 | . 4 87 186 90 . 1 Average Temperature 36 | . 4 24 64 32 . 1 Received Heat Transfer 1851 | . 36 345 621 390 . 459 Siege Activations . | . . . . . . . Robots Corrupted 2 | . . 1 1 . . . Combat Hostiles 1 | . . 1 . . . . Parts Fried 7 | . . 2 5 . . . Impact Corruptions . | . . . . . . . Robots Melted 2 | . . . 1 1 . . Combat Hostiles 2 | . . . 1 1 . . Parts Melted 11 | . . 1 5 5 . . Heat Transferred 7567 | . 100 1445 2135 3332 . 555 Parts Sabotaged . | . . . . . . . Parts Stolen . | . . . . . . . Parts Stripped . | . . . . . . . Power Chain Reactions 4 | . . 1 1 2 . . Alert | -11 -10 -9 -8 -7 -6 -6 ------- Run | Yrd Mat Mat Mat Fac Fac DSF Peak Influence 530 | . 71 530 351 497 167 272 Initial 217 | . . 1 217 130 167 116 Average 190 | . 41 225 155 298 167 206 Maximum Alert Level 2 | . . 2 1 2 . 1 Low Security (%) 56 | 100 100 59 58 21 100 37 Level 1 31 | . . 9 41 57 . 62 Level 2 12 | . . 30 . 20 . . Level 3 . | . . . . . . . Level 4 . | . . . . . . . Level 5 . | . . . . . . . High Security . | . . . . . . . Max Security . | . . . . . . . Sterilizations 1 | . . . . . . 1 Squads Dispatched 14 | . . 4 3 6 . 1 Investigation 2 | . . 1 . 1 . . Extermination 1 | . . . . 1 . . Reinforcement 11 | . . 3 3 4 . 1 Assault . | . . . . . . . Garrison . | . . . . . . . Intercept . | . . . . . . . Searches Triggered . | . . . . . . . Construction Impeded 2 | . . . 1 1 . . Haulers Reinforced . | . . . . . . . Active Scanning Responses . | . . . . . . . Cargo Convoy Interrupts . | . . . . . . . Stealth | -11 -10 -9 -8 -7 -6 -6 --------- Run | Yrd Mat Mat Mat Fac Fac DSF Distress Signals 9 | . . 5 4 . . . Communications Jammed . | . . . . . . . Distress Signals . | . . . . . . . Times Spotted 130 | . 6 40 42 27 . 15 Peak Tracking Total 8 | . 2 6 8 7 . 4 Tactical Retreats 8 | . . 1 1 4 . 2 Traps | -11 -10 -9 -8 -7 -6 -6 ------- Run | Yrd Mat Mat Mat Fac Fac DSF Traps Triggered 8 | . 1 2 1 1 . 3 Indirectly 1 | . . . . . . 1 Trap Hack Attempts . | . . . . . . . Triggered . | . . . . . . . Disarmed . | . . . . . . . Reprogrammed . | . . . . . . . Reused . | . . . . . . . Traps Extracted . | . . . . . . . Installed . | . . . . . . . Triggered . | . . . . . . . Machines | -11 -10 -9 -8 -7 -6 -6 ---------- Run | Yrd Mat Mat Mat Fac Fac DSF Machines Disabled 7 | . . 3 2 2 . . Max in Single Turn 1 | . . 1 1 1 . . Machines Repaired . | . . . . . . . Machines Dismantled . | . . . . . . . Machines Sabotaged . | . . . . . . . Overloaded Fab Kills . | . . . . . . . Hacking | -11 -10 -9 -8 -7 -6 -6 --------- Run | Yrd Mat Mat Mat Fac Fac DSF Machines Accessed 16 | . 2 4 7 2 1 . Terminals 11 | . 2 2 5 1 1 . Fabricators . | . . . . . . . Repair Stations 5 | . . 2 2 1 . . Recycling Units . | . . . . . . . Scanalyzers . | . . . . . . . Garrison Access . | . . . . . . . Total Hacks 42 | . 5 11 18 6 2 . Successful 23 | . 1 4 12 5 1 . Failed 19 | . 4 7 6 1 1 . Catastrophic 3 | . 1 1 1 . . . Database Lockouts . | . . . . . . . Manual 18 | . 5 5 8 . . . Terminals 22 | . 5 5 8 2 2 . Fabricators . | . . . . . . . Repair Stations 20 | . . 6 10 4 . . Recycling Units . | . . . . . . . Scanalyzers . | . . . . . . . Garrison Access . | . . . . . . . Terminal Hacks 6 | . 1 . 3 1 1 . Prototype ID Bank 1 | . 1 . . . . . Open DSF 2 | . . . . 1 1 . Alert Level 1 | . . . 1 . . . Unreport Threat 2 | . . . 2 . . . Fabricator Hacks . | . . . . . . . Repair Station Hacks 16 | . . 4 8 4 . . Scan Component 8 | . . 2 4 2 . . Repair 8 | . . 2 4 2 . . Recycling Unit Hacks . | . . . . . . . Scanalyzer . | . . . . . . . Garrison Access Hacks . | . . . . . . . Unauthorized Hacks 1 | . . . 1 . . . Terminals 1 | . . . 1 . . . Assimilate 1 | . . . 1 . . . Fabricators . | . . . . . . . Repair Stations . | . . . . . . . Recycling Units . | . . . . . . . Scanalyzers . | . . . . . . . Garrison Access . | . . . . . . . Data Cores Recovered 1 | . . 1 . . . . Used . | . . . . . . . Hacking Detections 11 | . 2 2 4 2 1 . Full Trace Events 2 | . 1 . 1 . . . Feedback Events . | . . . . . . . Feedback Blocked . | . . . . . . . Robot Schematics Acquired . | . . . . . . . Robots Built . | . . . . . . . Authchips . | . . . . . . . Time . | . . . . . . . Total Robot Build Rating . | . . . . . . . Part Schematics Acquired . | . . . . . . . Parts Built . | . . . . . . . Authchips . | . . . . . . . Time . | . . . . . . . Total Part Build Rating . | . . . . . . . Parts Repaired 8 | . . 2 4 2 . . Time 259 | . . 70 140 49 . . Parts Recycled . | . . . . . . . Recycled Matter . | . . . . . . . Retrieved Matter . | . . . . . . . Retrieved Components . | . . . . . . . Parts Scanalyzed . | . . . . . . . Part Schematics Acquired . | . . . . . . . Parts Damaged . | . . . . . . . Bothacking | -11 -10 -9 -8 -7 -6 -6 ------------ Run | Yrd Mat Mat Mat Fac Fac DSF Used RIF Installer . | . . . . . . . Robots Hacked . | . . . . . . . Non-combat . | . . . . . . . Combat . | . . . . . . . Robot Hacks Applied . | . . . . . . . Relay Couplers Released . | . . . . . . . Fabnet Peak Effective % . | . . . . . . . Robots Rewired . | . . . . . . . Allies Hacked . | . . . . . . . Hacks Repelled . | . . . . . . . Allies | -11 -10 -9 -8 -7 -6 -6 -------- Run | Yrd Mat Mat Mat Fac Fac DSF Total Allies 1 | . . . 1 . . . Largest Group 1 | . . . 1 . . . Highest-Rated Group 10 | . . . 10 . . . Highest-Rated Ally 10 | . . . 10 . . . Total Orders . | . . . . . . . Ally Attacks . | . . . . . . . Total Damage . | . . . . . . . Kills . | . . . . . . . Allies Corrupted . | . . . . . . . Allies Melted . | . . . . . . . Intel | -11 -10 -9 -8 -7 -6 -6 ------- Run | Yrd Mat Mat Mat Fac Fac DSF Robot Analysis Total . | . . . . . . . Derelict Logs Recovered . | . . . . . . . Drone Launches . | . . . . . . . Drone Recoveries . | . . . . . . . Exploration | -11 -10 -9 -8 -7 -6 -6 ------------- Run | Yrd Mat Mat Mat Fac Fac DSF Turns Passed 5824 | 76 526 1822 2011 847 37 505 Spaces Moved 2958 | 60 374 1009 967 328 19 201 Core 124 | 2 . . . . . 122 Treads . | . . . . . . . Legs 2397 | 58 83 866 967 328 19 76 Wheels . | . . . . . . . Hover 434 | . 291 143 . . . . Flight 3 | . . . . . . 3 Fastest Speed 50 | 50 116 112 126 122 190 50 Average Speed 139 | 117 117 127 153 140 190 168 Slowest Speed 1100 | 120 180 200 200 330 190 1100 Overloaded Moves . | . . . . . . . Propulsion Burnouts . | . . . . . . . Robots Hopped . | . . . . . . . Cave-ins Triggered . | . . . . . . . Exploration Rate (%) 36 | 4 40 65 66 8 1 68 Regions Visited 6 Branch Regions . Pre-discovered Areas . | . . . . . . . Known Exits Taken 1 | . . . . . 1 . Unknown Exits Taken 5 | 1 1 1 1 1 . . Scrap Searched . | . . . . . . . Spaces Dug . | . . . . . . . Terrain Destroyed 75 | . . 9 4 47 . 15 Melee . | . . . . . . . Projectile 3 | . . . . . . 3 AOE 72 | . . 9 4 47 . 12 Terrain Rammed . | . . . . . . . Walls Destroyed . | . . . . . . . Machines Disabled . | . . . . . . . Actions | -11 -10 -9 -8 -7 -6 -6 --------- Run | Yrd Mat Mat Mat Fac Fac DSF Total 4106 | 63 433 1377 1359 563 20 291 Wait 531 | . 11 191 216 113 . . Move 2952 | 59 373 1008 966 327 18 201 Hop . | . . . . . . . Pick Up 71 | . 12 25 21 8 . 5 Fast Attach 63 | 4 10 12 21 5 . 11 Attach 30 | . . 3 8 12 2 5 Detach 11 | . 2 . 5 2 . 2 Swap 51 | . 1 8 21 14 . 7 Drop 85 | . 9 36 25 7 . 8 Fire 294 | . 15 92 70 75 . 42 Melee . | . . . . . . . Ram . | . . . . . . . Kick 8 | . . 2 6 . . . Crush . | . . . . . . . Escape Stasis 10 | . . . . . . 10 Rewire . | . . . . . . . Trap . | . . . . . . . Miscellaneous . | . . . . . . . Route ------- -11/Scrapyard -10/Materials -9/Materials (discovered 3 exits: *Mat / [*Min x2]) -8/Materials (discovered 3 exits: *Fac / [*Sto x2]) -7/Factory -6/Factory -6/DSF History --------- Turn | Location | Event 6 | -11/Scrapyard | Discovered new exit (range 14) 77 | -11/Scrapyard | Entered Materials 306 | -10/Materials | Build established: Mutant 565 | -10/Materials | Discovered new exit (range 7) 603 | -10/Materials | Entered another Materials area 603 | -9/Materials | Evolved 2 slots: Propulsion x1, Utility x1 974 | -9/Materials | Repaired Imp. Heat Sink 1410 | -9/Materials | Repaired Hvy. EM Pulse Gun 1438 | -9/Materials | Discovered new exit (range 6) 2058 | -9/Materials | Discovered new exit (range 15) 2256 | -9/Materials | Discovered new exit (range 16) 2425 | -9/Materials | Entered another Materials area 2425 | -8/Materials | Evolved 2 slots: Utility x2 2435 | -8/Materials | Discovered new exit (range 13) 3229 | -8/Materials | Repaired Titanium Leg 3783 | -8/Materials | Discovered new exit (range 15) 4008 | -8/Materials | Lost 5 parts (1p1n2u1w) 4013 | -8/Materials | Destroyed 7 combat bots 4198 | -8/Materials | Discovered new exit (range 9) 4242 | -8/Materials | Repaired Grenade Launcher 4296 | -8/Materials | Repaired Titanium Leg 4336 | -8/Materials | Repaired Titanium Leg 4436 | -8/Materials | Entered Factory 4436 | -7/Factory | Evolved 2 slots: Propulsion x1, Utility x1 4448 | -7/Factory | Identified exit to DSF 4503 | -7/Factory | Repaired Adv. Beam Rifle? 4544 | -7/Factory | Repaired Lgt. Nuclear Core 5071 | -7/Factory | Lost 4 parts (1p1n1u1w) 5181 | -7/Factory | Discovered new exit (range 13) 5246 | -7/Factory | Lost 5 parts (1p3n1u) 5281 | -7/Factory | Core integrity fell below 50% 5283 | -7/Factory | Entered another Factory area 5283 | -6/Factory | Evolved 2 slots: Utility x2 5318 | -6/Factory | Identified exit to DSF 5320 | -6/Factory | Entered DSF 5372 | -6/DSF | Additional patrols routed to DSF 5469 | -6/DSF | Lost 3 parts (1n1u1w) 5549 | -6/DSF | Build established: Scavenger-Mutant 5654 | -6/DSF | Core integrity fell below 50% 5686 | -6/DSF | Core integrity fell below 20% 5708 | -6/DSF | Lost 7 parts (2n2u3w) 5763 | -6/DSF | Sterilization system engaged 5783 | -6/DSF | Ambient heat levels rising (+10) 5798 | -6/DSF | Ambient heat levels rising (+10) 5813 | -6/DSF | Ambient heat levels rising (+10) 5825 | -6/DSF | Destroyed by G-67 Veteran with Plasma Rifle Last Messages --------------- 05685_ Penetrated by Slug. 05688_ H-66 Slayer destroyed. 05714_ Acquired 30 matter. 05717_ Acquired 17 matter. 05739_ C-30 ARC bursts open, deploying its payload. 05739_ G-67 Veteran unfolds itself. 05739_ G-50 Soldier unfolds itself. 05741_ Acquired Med. Reactive Plating. 05763_ ALERT: Persistent threat exposed, engaging DSF rapid sterilization system. 05765_ Acquired Grenade Launcher. 05783_ ALERT: Ambient heat levels +10. 05783_ Acquired Xenon Bombardment Thruster. 05798_ ALERT: Ambient heat levels +10. 05812_ Lgt. Nuclear Core destroyed. 05812_ Enh. Gauss Cannon destroyed. 05813_ ALERT: Ambient heat levels +10. 05817_ Acquired Authchip [Power]. 05822_ Enh. Gauss Cannon destroyed. 05823_ Acquired 6 matter. Map ----- +----------------------------------------------------+ | | | | | | | ???????????????????????????????????????? | | ???????????????????????????????????????? | | ???????????????????????????????????????? | | ???????????????????????????????????????? | | ???????????????????????????????????????? | | ???????????????????????????????????????? | | ???????????????????????????????????????? | | ???????????????????????!!! ????????????? | | ???????????????????????!!! ????????????? | | ??????????????????????? ????????????? | | ??????????????????????? ????????????? | | ??????????????????????? #????????????? | | ????????????????????### ##???????????? | | ?????????????????????|| ???????????? | | ?????????????????????|| ????????????? | | ??????????????????????| ????????????? | | ????????????????????### ###??????????? | | ???????????????????##!!% !!#??????????? | | ????????????????????+!!%" !!#??????????? | | ?????????????????????!!% !!???????????? | | ??????#?????#########?# #?############ | | ??????#!!???#!!!#!!!### ###!!!# ## | | ??????#!! ##!!@#! !## [#!!! ## | | ??????#!!^ ^ !! * | | ??????#!! ^^ *! |! = | | ??????#!! ^^ g []] ** | | ??????#!! ## %#]]]##g [#"!! # | | ??????#!! ??# #]]]### ##"!!!# #= | | ??????###???########### ####+#######^ | | ????????????????????#!! !!## #???# | | ????????????????????#!! !!## ###?# ^ | | ????????????????????#!! !!## ][#?# | | ????????????????????### #### #### | | ????????????????????#== !!+ + [ | | ????????????????????#== !!######## = | | ????????????????###?#== !!########## * | | ????????????????#]]]### ###===#==### | | ??????#"" ##]]#]]]### ### ==#==## | | ??????""" | | ??????#"" | | ??????#"""""##]]#]]]#== !!# #==##""" | | ?????????????#??#####== !!#########""" | | ????????????????????#########???????##"# | | ?????????????????????????????????????#"# | | ?????????????????????????????????????#"" | | ?????????????????????????????????????### | | ???????????????????????????????????????? | +----------------------------------------------------+ Best States ------------- Heat Dissipation 75 Energy Generation 18 Energy Capacity 290 Matter Stores 300 Matter Capacity 300 Sight Range 20 Robot Scan Range 15 Terrain Scan Density 10 Jamming Range 12 Additional Mass Support 9 Armor Coverage 825 Resistance: KI 30 Evasion (%) 59 Targeting Accuracy 13 Core Analysis 6 Energy Filtering 30 Authchip Count 1 Item Schematics ----------------- None Robot Schematics ------------------ None Fabricated ------------ Nothing Alien Tech Used ----------------- None Achievements -------------- None Challenges ------------ None Game ------ Seed ZhirovAlphaMonowheel Manual? 0 Play Time 00:51:18 Cumulative 131.4 hours Start 2024.04.27 @ 10:48:25 End 2024.04.27 @ 12:18:25 Sessions 1 Manual Loads 0 Difficulty Rogue Special Mode None Game No. 268 Rogue 268 Adventurer 0 Explorer 0 Win Type - Total 0 Types 0/0/0/0/0/0/0/0/0 Lore% 35 Gallery% 54 Achievement% 37 Wizard Run 0 Options --------- Layout 0 ASCII 0 Keyboard 1 Movement Numpad Keybinds 0 Fullscreen 2 Font 18/X11 Map View 76x50 Zoom Use 0% Tactical HUD 1 Map Filters NONE Filters NONE Steam 1 RUN: 4ac55904-10d9-49fb-8701-1c0d1c298f71